bitfinex-derivatives/quotes_BTCF0:USTF0_20251119
["timestamp","ask_amount","ask_price","bid_price","bid_amount"]
[1763537704274,0.04474,91561.0,91560.0,0.2897977]
[1763537704877,0.04474,91561.0,91560.0,0.0256377]
[1763537705082,0.04474,91561.0,91560.0,0.0031977]
[1763537705282,0.04474,91561.0,91560.0,0.2673177]
[1763537705477,0.02328,91561.0,91560.0,0.3098977]
[1763537705784,0.04474,91561.0,91560.0,0.3108977]
[1763537706184,0.04474,91561.0,91560.0,0.4201954]
[1763537706689,0.40554,91561.0,91560.0,0.0031977]
[1763537706874,0.40554,91561.0,91560.0,0.2673577]
[1763537707079,0.431313,91561.0,91560.0,0.2673577]
[1763537707484,0.431313,91561.0,91560.0,0.0031977]
[1763537707881,0.431313,91561.0,91560.0,0.001]
[1763537708181,0.431313,91561.0,91560.0,0.0031977]
[1763537708678,0.431313,91561.0,91560.0,0.0021977]
[1763537710579,0.1540413,91557.0,91556.0,0.00016386]
[1763537711981,0.07051888,91557.0,91556.0,0.04374386]
[1763537712188,0.07051888,91557.0,91556.0,0.02260386]
[1763537712383,0.07051888,91557.0,91556.0,0.00016386]
[1763537713182,0.04474,91557.0,91556.0,0.04374386]
[1763537713489,0.045473,91560.0,91559.0,0.04358]
[1763537714190,0.059243,91560.0,91559.0,0.04358]
[1763537717491,0.3608,91561.0,91558.0,0.26416]
[1763537717492,0.3608,91561.0,91560.0,0.1550754]
[1763537717690,0.05878303,91566.0,91565.0,0.1528718]
[1763537719489,0.05878303,91566.0,91565.0,0.04358]
[1763537720795,0.08458411,91566.0,91565.0,0.04358]
[1763537723295,0.08458411,91566.0,91565.0,0.30762]
[1763537723487,0.04935411,91566.0,91565.0,0.4169118]
[1763537723690,0.04463303,91566.0,91565.0,0.4169118]
[1763537723994,0.02355303,91566.0,91565.0,0.4169118]
[1763537724193,0.00027303,91566.0,91565.0,0.4169118]
[1763537724589,0.04315303,91566.0,91565.0,0.4169118]
[1763537725187,0.00027303,91566.0,91565.0,0.4169118]
[1763537726500,3.03e-06,91566.0,91565.0,0.7777118]
[1763537726685,0.41768,91590.0,91589.0,0.04513]
[1763537726891,0.38734315,91590.0,91589.0,0.30917]
[1763537727390,0.07101315,91590.0,91589.0,0.30917]
[1763537727589,0.045203,91590.0,91589.0,0.30917]
[1763537728393,0.04458,91581.0,91580.0,0.40591386]
[1763537728586,0.04458,91581.0,91580.0,0.67211156]
[1763537729300,0.04458,91581.0,91580.0,0.26636156]
[1763537731189,0.04458,91581.0,91580.0,0.04731156]
[1763537732097,0.04458,91581.0,91580.0,0.02542156]
[1763537732694,0.04458,91581.0,91580.0,0.00236156]
[1763537732893,0.04458,91581.0,91580.0,0.00016386]
[1763537733100,0.1538718,91565.0,91564.0,0.3608]
[1763537733409,0.1538718,91565.0,91546.0,0.1093139]
[1763537733410,0.1538933,91547.0,91546.0,0.3608]
[1763537733702,0.0135,91552.0,91528.0,0.45886501]
[1763537733703,0.04458,91533.0,91532.0,0.1542803]
[1763537733902,0.04458,91533.0,91532.0,0.4183203]
[1763537734298,0.02191,91533.0,91532.0,0.4183203]
[1763537734504,0.04458,91533.0,91532.0,0.26404]
[1763537734701,0.04358,91533.0,91532.0,0.26404]
[1763537735202,0.04358,91533.0,91532.0,0.30999]
[1763537735995,0.04358,91533.0,91532.0,0.31099]
[1763537736394,0.04358,91533.0,91532.0,0.26604]
[1763537736595,0.40438,91533.0,91532.0,0.002]
[1763537736796,0.40438,91533.0,91532.0,0.001]
[1763537737305,0.04458,91531.0,91530.0,0.0021977]
[1763537737506,0.04358,91531.0,91530.0,0.0021977]
[1763537737896,0.1539207,91524.0,91523.0,0.00016386]
[1763537738907,0.04458,91524.0,91523.0,0.00016386]
[1763537739111,0.1539207,91524.0,91523.0,0.02322386]
[1763537739292,0.1539207,91524.0,91523.0,0.00016386]
[1763537740995,0.3608,91533.0,91523.0,0.00016386]
[1763537740996,0.40538,91533.0,91523.0,0.00016386]
[1763537741304,0.02191,91524.0,91523.0,0.04511386]
[1763537741503,0.04458,91524.0,91523.0,0.04511386]
[1763537742300,0.40538,91533.0,91532.0,0.04495]
[1763537742896,0.40538,91533.0,91523.0,0.00116386]
[1763537742897,0.000733,91530.0,91523.0,0.00116386]
[1763537743096,0.04458,91505.0,91504.0,0.40575]
[1763537743301,0.04458,91521.0,91520.0,0.04495]
[1763537743493,0.02191,91521.0,91520.0,0.04495]
[1763537743893,0.04458,91521.0,91520.0,0.04495]
[1763537744097,0.01366386,91530.0,91520.0,0.1542947]
[1763537744309,0.02191,91524.0,91523.0,0.1542913]
[1763537745002,0.04474386,91530.0,91529.0,0.04495]
[1763537745203,0.00236189,91530.0,91529.0,0.04495]
[1763537745804,0.00016386,91530.0,91529.0,0.04495]
[1763537746711,0.00236189,91530.0,91529.0,0.04495]
[1763537748004,0.04694189,91530.0,91529.0,0.04495]
[1763537748312,0.06044189,91530.0,91529.0,0.04495]
[1763537748711,0.04694189,91530.0,91529.0,0.04495]
[1763537749010,0.00236189,91530.0,91529.0,0.04495]
[1763537750708,0.00016386,91530.0,91529.0,0.04495]
[1763537751208,0.05808,91548.0,91547.0,0.1323732]
[1763537751905,0.05808,91540.0,91539.0,0.3608]
[1763537752211,0.05808,91540.0,91539.0,0.40575]
[1763537752212,0.06027803,91540.0,91539.0,0.40575]
[1763537752799,0.06027803,91540.0,91530.0,0.00016386]
[1763537752800,0.04458,91531.0,91530.0,0.00016386]
[1763537753005,0.04458,91531.0,91530.0,0.26432386]
[1763537753310,0.1539123,91531.0,91530.0,0.00016386]
[1763537753509,0.1539123,91531.0,91530.0,0.26432386]
[1763537754007,0.1539123,91531.0,91530.0,0.26436386]
[1763537754203,0.1539123,91531.0,91530.0,0.00016386]
[1763537754406,0.04458,91531.0,91530.0,0.04511386]
[1763537754608,0.02191,91531.0,91530.0,0.04511386]
[1763537754908,0.04458,91531.0,91530.0,0.04511386]
[1763537755510,0.04458,91531.0,91530.0,0.00016386]
[1763537757805,0.04558,91531.0,91530.0,0.00016386]
[1763537759114,0.001,91531.0,91530.0,0.05861386]
[1763537759307,0.04601,91531.0,91530.0,0.00016386]
[1763537759807,0.04501,91531.0,91530.0,0.00016386]
[1763537761105,0.4701302,91533.0,91518.0,0.3608]
[1763537761106,0.04501,91519.0,91518.0,0.3608]
[1763537762518,0.04501,91519.0,91518.0,0.3841]
[1763537763316,0.04501,91519.0,91518.0,0.40695]
[1763537765824,0.1543567,91519.0,91518.0,0.3608]
[1763537766724,0.05896,91512.0,91511.0,0.0233]
[1763537767419,0.04720803,91510.0,91509.0,0.00016386]
[1763537768218,0.04720803,91510.0,91509.0,0.04631386]
[1763537770117,0.15656543,91510.0,91509.0,0.04631386]
[1763537770317,0.04720803,91510.0,91509.0,0.15567246]
[1763537770816,0.04720803,91510.0,91509.0,0.04631386]
[1763537771021,0.04720803,91510.0,91509.0,0.00016386]
[1763537771927,0.07294853,91510.0,91509.0,0.00016386]
[1763537772437,0.07294335,91510.0,91509.0,0.00016386]
[1763537775128,0.04720803,91510.0,91509.0,0.00016386]
[1763537781435,0.07293753,91510.0,91509.0,0.00016386]
[1763537782434,0.07293753,91510.0,91509.0,0.10952246]
[1763537782621,0.04501,91521.0,91520.0,0.1554955]
[1763537782936,0.04517386,91528.0,91527.0,0.04615]
[1763537783130,0.05912386,91528.0,91527.0,0.04615]
[1763537783639,0.04425,91517.0,91516.0,0.40527]
[1763537783931,0.02176386,91528.0,91527.0,0.1538071]
[1763537784822,0.00016386,91528.0,91527.0,0.1538071]
[1763537785329,0.00116386,91528.0,91527.0,0.1538071]
[1763537785531,0.00116386,91528.0,91527.0,0.4180071]
[1763537790328,0.0459,91549.0,91548.0,0.1533011]
[1763537790629,0.00219803,91550.0,91549.0,0.04399]
[1763537792040,0.00419803,91550.0,91549.0,0.04399]
[1763537792736,0.00319803,91550.0,91549.0,0.04399]
[1763537793332,0.003,91550.0,91549.0,0.04399]
[1763537794136,0.002,91550.0,91549.0,0.04399]
[1763537794443,0.003,91550.0,91549.0,0.04399]
[1763537794740,0.002,91550.0,91549.0,0.04399]
[1763537794935,0.00016386,91559.0,91558.0,0.04399]
[1763537795129,0.00016386,91559.0,91558.0,0.7781701]
[1763537796128,0.00116386,91559.0,91558.0,0.7781701]
[1763537796537,0.04706386,91559.0,91558.0,0.64631]
[1763537796736,0.04706386,91559.0,91558.0,0.64627]
[1763537796931,0.04706386,91559.0,91558.0,0.38219]
[1763537797137,0.0459,91548.0,91547.0,0.40479]
[1763537797337,0.0459,91548.0,91547.0,0.66891]
[1763537797934,0.0459,91548.0,91547.0,0.40479]
[1763537798138,0.0459,91548.0,91547.0,0.66891]
[1763537798328,0.0469,91548.0,91547.0,0.7782232]
[1763537799133,0.0469,91548.0,91547.0,0.66891]
[1763537800143,0.0459,91548.0,91547.0,0.66891]
[1763537800343,0.0469,91548.0,91547.0,0.66891]
[1763537804643,0.0469,91548.0,91547.0,0.66883]
[1763537805539,0.0469,91548.0,91540.0,0.04415386]
[1763537805540,0.0459,91541.0,91540.0,0.04415386]
[1763537805836,0.0459,91541.0,91540.0,0.30823386]
[1763537806041,0.0469,91548.0,91547.0,0.1533032]
[1763537806639,0.001,91548.0,91547.0,0.1533032]
[1763537806839,0.00219803,91550.0,91549.0,0.04399]
[1763537807947,0.00219803,91550.0,91549.0,0.30807]
[1763537808148,0.00319803,91550.0,91549.0,0.30807]
[1763537808343,0.02633803,91550.0,91549.0,0.30807]
[1763537809547,0.04909803,91550.0,91549.0,0.30807]
[1763537810849,0.04909803,91550.0,91549.0,0.4173808]
[1763537811543,0.00319803,91550.0,91549.0,0.4173808]
[1763537811745,0.04909803,91550.0,91549.0,0.30807]
[1763537812234,0.00319803,91550.0,91549.0,0.4173808]
[1763537813248,0.02633803,91550.0,91549.0,0.4173808]
[1763537813548,0.04909803,91550.0,91549.0,0.4173808]
[1763537815152,0.04909803,91550.0,91549.0,0.30807]
[1763537820149,0.00319803,91550.0,91549.0,0.30807]
[1763537820347,0.04745803,91550.0,91549.0,0.30807]
[1763537820747,0.001,91550.0,91549.0,0.30807]
[1763537820941,0.00027303,91566.0,91558.0,0.1549101]
[1763537821154,0.00027303,91566.0,91558.0,0.4188301]
[1763537822047,0.04442386,91559.0,91558.0,0.30953]
[1763537822254,0.04442386,91559.0,91558.0,0.30957]
[1763537822945,0.02159386,91559.0,91558.0,0.30957]
[1763537823146,0.04442386,91559.0,91558.0,0.30957]
[1763537823357,0.04442386,91559.0,91558.0,0.04561]
[1763537823647,0.04442386,91559.0,91545.0,0.40641]
[1763537823648,0.04426,91546.0,91545.0,0.40641]
[1763537823854,0.04426,91546.0,91545.0,0.67037]
[1763537825639,0.1535744,91546.0,91545.0,0.67037]
[1763537825855,0.04426,91546.0,91545.0,0.67037]
[1763537827350,0.04426,91546.0,91540.0,0.00016386]
[1763537827351,0.1535804,91541.0,91540.0,0.00016386]
[1763537827553,0.17921522,91541.0,91540.0,0.00016386]
[1763537827755,0.06989482,91541.0,91540.0,0.04577386]
[1763537828056,0.06989482,91541.0,91540.0,0.15509546]
[1763537828956,0.04426,91541.0,91540.0,0.15509546]
[1763537829158,0.01368,91552.0,91551.0,0.04561]
[1763537829354,0.08356878,91552.0,91551.0,0.04561]
[1763537830149,0.08356878,91552.0,91551.0,0.02271]
[1763537830956,0.04426,91546.0,91545.0,0.1549256]
[1763537832656,0.04426,91546.0,91545.0,0.04561]
[1763537834852,0.04645803,91550.0,91549.0,0.04561]
[1763537835059,0.04645803,91550.0,91549.0,0.1549208]
[1763537835364,0.00219803,91550.0,91549.0,0.1549208]
[1763537835565,0.00016386,91559.0,91558.0,0.1549101]
[1763537836753,0.02159386,91559.0,91558.0,0.1549101]
[1763537836949,0.3608,91572.0,91565.0,0.1549017]
[1763537837153,0.3608,91572.0,91565.0,0.4189017]
[1763537837362,0.03937483,91590.0,91585.0,0.1092679]
[1763537837553,0.03937483,91590.0,91585.0,0.1548779]
[1763537837554,0.04426,91586.0,91585.0,0.1548779]
[1763537837758,0.06986935,91586.0,91585.0,0.1548779]
[1763537838160,0.06986935,91586.0,91585.0,0.04561]
[1763537838354,0.04426,91586.0,91585.0,0.04561]
[1763537839260,0.04426,91581.0,91580.0,0.31184803]
[1763537840166,0.04426,91581.0,91580.0,0.31180803]
[1763537840465,0.41874,91592.0,91591.0,0.04561]
[1763537840666,0.4443141,91592.0,91591.0,0.02271]
[1763537840866,0.1535207,91591.0,91590.0,0.00219803]
[1763537841066,0.1790948,91591.0,91590.0,0.00219803]
[1763537841365,0.04426,91581.0,91576.0,0.00016386]
[1763537841567,0.04426,91581.0,91576.0,0.04577386]
[1763537841568,0.04426,91577.0,91576.0,0.04577386]
[1763537841869,0.37448,91592.0,91576.0,0.04577386]
[1763537841870,0.04499267,91580.0,91579.0,0.04561]
[1763537843159,0.00073267,91580.0,91579.0,0.04561]
[1763537843765,0.37448,91592.0,91591.0,0.1526607]
[1763537843766,0.41931,91592.0,91591.0,0.1526607]
[1763537844164,0.41931,91592.0,91591.0,0.0434]
[1763537846367,0.5285695,91592.0,91591.0,0.0434]
[1763537847068,0.41931,91592.0,91591.0,0.0434]
[1763537847269,0.3608,91592.0,91591.0,0.30732]
[1763537847570,0.38237,91592.0,91591.0,0.30732]
[1763537848157,0.3608,91592.0,91591.0,0.30732]
[1763537848359,0.01422046,91600.0,91599.0,0.04508]
[1763537848360,0.02215046,91600.0,91599.0,0.04508]
[1763537848559,0.04541313,91600.0,91599.0,0.04508]
[1763537848962,0.04541313,91600.0,91591.0,0.309]
[1763537848963,0.04414,91592.0,91591.0,0.309]
[1763537849165,0.05726,91592.0,91591.0,0.309]
[1763537849360,0.12291066,91600.0,91591.0,0.309]
[1763537849361,0.04468046,91600.0,91599.0,0.04508]
[1763537849560,0.04541313,91600.0,91599.0,0.04508]
[1763537850672,0.04541313,91600.0,91599.0,0.1543312]
[1763537851169,0.00054046,91600.0,91599.0,0.1543312]
[1763537851367,0.00127313,91600.0,91599.0,0.1543312]
[1763537852264,0.00054046,91600.0,91599.0,0.1543312]
[1763537852568,0.04339313,91600.0,91599.0,0.04508]
[1763537852770,0.00127313,91600.0,91599.0,0.04508]
[1763537853964,0.00127313,91600.0,91599.0,0.1543312]
[1763537854271,0.00127313,91600.0,91599.0,0.04508]
[1763537854671,0.02236313,91600.0,91599.0,0.30896]
[1763537854871,0.00127313,91600.0,91599.0,0.30896]
[1763537855065,0.00054046,91600.0,91599.0,0.30896]
[1763537856776,0.02163046,91600.0,91599.0,0.30896]
[1763537857072,0.00127313,91600.0,91599.0,0.30896]
[1763537857773,0.00127313,91600.0,91591.0,0.3608]
[1763537857774,0.04212,91578.0,91577.0,0.40486]
[1763537857973,0.00073267,91580.0,91579.0,0.04406]
[1763537858478,0.05608,91592.0,91591.0,0.04406]
[1763537859571,0.05608,91592.0,91591.0,0.1533207]
[1763537859767,0.01450046,91600.0,91590.0,0.00219803]
[1763537859768,0.00054046,91600.0,91599.0,0.04406]
[1763537859960,0.00054046,91600.0,91599.0,0.30794]
[1763537860166,0.00127313,91600.0,91599.0,0.30794]
[1763537861074,0.02236313,91600.0,91599.0,0.30794]
[1763537861868,0.04339313,91600.0,91599.0,0.04406]
[1763537862079,0.04339313,91600.0,91599.0,0.30798]
[1763537862472,0.04339313,91600.0,91599.0,0.4172312]
[1763537864265,0.00127313,91600.0,91599.0,0.4172312]
[1763537865567,0.00054046,91600.0,91599.0,0.4172312]
[1763537866563,0.00127313,91600.0,91599.0,0.4172312]
[1763537866773,0.04339313,91600.0,91599.0,0.4172312]
[1763537867764,0.04339313,91600.0,91599.0,0.30798]
[1763537868664,0.02236313,91600.0,91599.0,0.30798]
[1763537870682,0.21509545,91625.0,91605.0,0.04406]
[1763537870989,0.07844483,91665.0,91659.0,0.1091797]
[1763537871277,0.0241125,91664.0,91661.0,0.1091773]
[1763537871475,0.01396,91674.0,91672.0,0.1091632]
[1763537871666,0.01379614,91674.0,91673.0,0.7216]
[1763537871868,0.02109,91687.0,91686.0,0.1091475]
[1763537872080,0.02109,91691.0,91690.0,0.00219803]
[1763537872378,0.04212,91691.0,91690.0,0.36299803]
[1763537873382,0.01396,91692.0,91690.0,0.36299803]
[1763537873571,0.01396,91692.0,91691.0,0.1091416]
[1763537873572,0.03499,91692.0,91691.0,0.1091416]
[1763537873774,0.05608,91692.0,91691.0,0.1091416]
[1763537874872,0.03505,91692.0,91691.0,0.1091416]
[1763537875068,0.01396,91692.0,91691.0,0.1091416]
[1763537875280,0.05608,91710.0,91709.0,0.1091201]
[1763537875578,0.05608,91692.0,91691.0,0.1091416]
[1763537875881,0.01396,91692.0,91691.0,0.8307416]
[1763537876277,0.05608,91704.0,91703.0,0.1091273]
[1763537876482,0.05608,91704.0,91703.0,0.4699273]
[1763537876678,0.05608,91704.0,91703.0,0.3608]
[1763537880184,0.01396,91704.0,91703.0,0.3608]
[1763537880381,0.04420255,91726.0,91725.0,0.1091011]
[1763537880587,0.04420255,91726.0,91725.0,1.0953811]
[1763537880780,0.04420255,91726.0,91725.0,0.7216]
[1763537880988,0.04393,91717.0,91716.0,3.55e-06]
[1763537881179,0.04393,91709.0,91708.0,0.3608]
[1763537884988,0.03577,91716.0,91711.0,0.1091178]
[1763537885286,0.03577,91716.0,91715.0,0.3608]
[1763537885791,0.0574,91716.0,91715.0,0.3608]
[1763537886791,0.01347,91716.0,91715.0,0.3608]
[1763537886991,0.00016253,91718.0,91716.0,0.1091118]
[1763537887188,0.00027255,91726.0,91725.0,0.1091011]
[1763537887388,0.00027255,91726.0,91725.0,0.4699011]
[1763537887584,0.04420255,91726.0,91725.0,0.4699011]
[1763537887777,0.00027255,91726.0,91725.0,0.4699011]
[1763537887981,0.00027255,91726.0,91725.0,0.7345011]
[1763537888796,0.05789,91740.0,91739.0,0.1090845]
[1763537888989,0.05789,91740.0,91739.0,0.4698845]
[1763537888990,0.01396,91740.0,91739.0,0.4698845]
[1763537889589,0.04393,91749.0,91748.0,0.1090731]
[1763537889891,0.1530026,91749.0,91748.0,0.3608]
[1763537890193,0.04393,91749.0,91748.0,0.4698738]
[1763537890989,0.04393,91749.0,91748.0,0.3608]
[1763537891400,1.54393,91749.0,91748.0,0.3608]
[1763537894491,1.54393,91749.0,91748.0,0.33195998]
[1763537894701,1.54393,91749.0,91740.0,0.3608]
[1763537894702,0.1530121,91741.0,91740.0,0.3608]
[1763537894997,0.1530121,91741.0,91740.0,0.36299803]
[1763537895193,1.5,91749.0,91748.0,0.1090738]
[1763537895496,1.5,91749.0,91748.0,0.3608]
[1763537899303,0.01347,91751.0,91750.0,0.00219803]
[1763537899488,0.0574,91762.0,91761.0,0.1090583]
[1763537899692,1.5574,91762.0,91761.0,0.4698583]
[1763537899996,1.5574,91762.0,91761.0,0.3608]
[1763537900593,0.0574,91762.0,91761.0,0.3608]
[1763537903799,0.0574,91762.0,91752.0,0.00016355]
[1763537903800,0.1532078,91753.0,91752.0,0.00016355]
[1763537903997,0.5140078,91753.0,91752.0,0.00016355]
[1763537904504,0.05812,91740.0,91739.0,0.3735245]
[1763537904901,0.01398,91740.0,91739.0,0.3735245]
[1763537905103,0.01398,91750.0,91739.0,0.3735245]
[1763537905104,0.05812,91750.0,91749.0,0.1090726]
[1763537905401,0.37443355,91762.0,91761.0,0.1090583]
[1763537905402,0.05777355,91762.0,91761.0,0.1090583]
[1763537906200,0.03676355,91762.0,91761.0,0.4698583]
[1763537907403,0.03676355,91762.0,91761.0,0.4865983]
[1763537907604,0.05786355,91762.0,91761.0,0.37754]
[1763537908299,0.01363355,91762.0,91761.0,0.37754]
[1763537909505,0.05681355,91762.0,91761.0,0.37754]
[1763537910694,0.05681355,91762.0,91761.0,0.3608]
[1763537910895,0.05681355,91762.0,91761.0,0.37754]
[1763537911201,0.05681355,91762.0,91761.0,0.01674]
[1763537911400,0.03571355,91762.0,91761.0,0.01674]
[1763537911609,0.00016355,91762.0,91761.0,0.01674]
[1763537912405,0.01398,91770.0,91765.0,0.01674]
[1763537912601,0.2644,91798.0,91779.0,0.1257769]
[1763537912801,0.1090233,91791.0,91779.0,0.4865769]
[1763537913006,0.109027,91788.0,91779.0,0.4865769]
[1763537913307,0.05716,91790.0,91789.0,0.01674]
[1763537914209,0.04318,91788.0,91787.0,0.3608]
[1763537914405,0.04318,91781.0,91780.0,0.26676149]
[1763537915010,0.04318,91781.0,91780.0,0.28350149]
[1763537915311,0.1522145,91781.0,91780.0,0.28350149]
[1763537915502,0.1522145,91781.0,91780.0,0.00236149]
[1763537915701,0.1522145,91781.0,91780.0,0.00036149]
[1763537915902,0.166034,91773.0,91772.0,0.2644]
[1763537916103,0.04318,91772.0,91771.0,0.3608]
[1763537918313,0.04318,91763.0,91762.0,0.00016346]
[1763537919015,0.1522359,91763.0,91762.0,0.00016346]
[1763537921205,0.1522359,91763.0,91762.0,3.46e-06]
[1763537921411,0.1522478,91753.0,91752.0,0.3608]
[1763537922511,0.04318,91751.0,91750.0,0.00109416]
[1763537928511,0.1522585,91744.0,91743.0,0.36096346]
[1763537931317,0.1522585,91744.0,91743.0,0.37802346]
[1763537931710,0.04318,91744.0,91743.0,0.37802346]
[1763537932921,0.04318,91744.0,91743.0,0.48710316]
[1763537933314,0.04318,91744.0,91743.0,0.37802346]
[1763537933825,0.04318,91744.0,91743.0,0.36096346]
[1763537935919,0.04318,91744.0,91743.0,3.46e-06]
[1763537936516,0.04318,91734.0,91719.0,0.29284993]
[1763537936916,0.1522704,91734.0,91719.0,0.29284993]
[1763537937118,0.1522704,91734.0,91719.0,8.019e-05]
[1763537937317,0.1522787,91727.0,91723.0,0.3608]
[1763537938520,0.04318,91727.0,91726.0,0.01017255]
[1763537938723,0.02208,91727.0,91726.0,0.01117255]
[1763537938923,0.04794,91727.0,91726.0,0.01117255]
[1763537939426,0.04794,91727.0,91726.0,0.12027245]
[1763537940723,0.02208,91727.0,91726.0,0.12027245]
[1763537940923,0.02511346,91736.0,91735.0,0.1115092]
[1763537941224,0.05097346,91736.0,91735.0,0.1115092]
[1763537942428,0.02511346,91736.0,91735.0,0.1115092]
[1763537942725,0.00016346,91736.0,91735.0,0.1115092]
[1763537943520,0.3608,91765.0,91754.0,0.1114866]
[1763537943721,0.06462,91755.0,91754.0,0.36322]
[1763537944617,0.06462,91755.0,91754.0,0.3608]
[1763537944618,0.1736854,91755.0,91754.0,0.3608]
[1763537945622,0.1736854,91755.0,91745.0,0.02907475]
[1763537945623,0.1749261,91746.0,91745.0,0.00016346]
[1763537947418,0.06585,91746.0,91745.0,0.00137346]
[1763537947623,0.00183654,91750.0,91749.0,0.1114926]
[1763537949132,0.02678654,91750.0,91749.0,0.1114926]
[1763537950036,0.05264654,91750.0,91749.0,0.1114926]
[1763537950222,0.00183654,91750.0,91749.0,0.1114926]
[1763537950532,0.01381,91755.0,91754.0,0.1114866]
[1763537950736,0.01381,91755.0,91754.0,0.4722866]
[1763537950925,0.03876,91755.0,91754.0,0.4722866]
[1763537951120,0.06462,91755.0,91754.0,0.4722866]
[1763537951635,0.06601346,91764.0,91763.0,0.00242]
[1763537952131,0.1598659,91763.0,91762.0,0.3608]
[1763537952533,0.01520346,91764.0,91754.0,0.3608]
[1763537952534,0.1749154,91755.0,91754.0,0.3608]
[1763537953131,0.1749154,91755.0,91754.0,0.38632]
[1763537955126,0.1749154,91755.0,91754.0,0.3608]
[1763537955526,0.1598802,91751.0,91750.0,0.00109416]
[1763537955727,0.1598802,91751.0,91745.0,0.00016346]
[1763537955728,0.1749261,91746.0,91745.0,0.00016346]
[1763537956129,0.06585,91746.0,91745.0,0.05034346]
[1763537957836,0.00183654,91750.0,91749.0,0.05018]
[1763537958134,0.05081,91746.0,91745.0,0.02568346]
[1763537958323,0.1598861,91746.0,91745.0,0.00016346]
[1763537958725,0.05081,91746.0,91745.0,0.02568346]
[1763537958929,0.05081,91746.0,91745.0,0.05034346]
[1763537959135,0.05081,91746.0,91745.0,0.00016346]
[1763537959333,0.00016346,91764.0,91763.0,0.1114759]
[1763537959532,0.01504,91780.0,91772.0,0.1114652]
[1763537959736,0.01504,91780.0,91772.0,0.36322]
[1763537960035,0.06585,91773.0,91772.0,0.36322]
[1763537960927,0.03999,91773.0,91772.0,0.36322]
[1763537961633,0.01504,91800.0,91781.0,0.00242]
[1763537961833,0.01504,91828.0,91827.0,0.00242]
[1763537962041,0.01504,91828.0,91798.0,0.1090143]
[1763537962042,0.01504,91839.0,91831.0,0.1089752]
[1763537962232,0.01504,91839.0,91830.0,0.01109415]
[1763537962233,0.02495,91831.0,91830.0,0.12249045]
[1763537962431,0.05081,91831.0,91830.0,0.72511416]
[1763537963030,0.01504,91839.0,91838.0,0.1089669]
[1763537963227,0.01504,91839.0,91838.0,0.3608]
[1763537963228,0.07794,91839.0,91838.0,0.3608]
[1763537963432,0.07794,91839.0,91838.0,0.41418]
[1763537963635,0.06694,91839.0,91838.0,0.38749]
[1763537963937,0.06694,91839.0,91838.0,0.3608]
[1763537966539,0.06694,91839.0,91838.0,0.31199]
[1763537966737,0.46694,91839.0,91821.0,0.36096335]
[1763537966945,0.1089841,91824.0,91821.0,0.00016335]
[1763537967144,0.00183654,91830.0,91829.0,0.06138]
[1763537968736,0.00183654,91830.0,91829.0,0.1703575]
[1763537969541,0.00183654,91830.0,91829.0,0.06138]
[1763537970335,0.4697427,91859.0,91829.0,0.06138]
[1763537970336,0.3608,91859.0,91845.0,0.06171]
[1763537970638,0.06092,91861.0,91850.0,0.00999999]
[1763537970844,0.06092,91854.0,91853.0,0.3608]
[1763537971044,0.06092,91854.0,91853.0,0.4697491]
[1763537971344,0.06092,91854.0,91853.0,0.3608]
[1763537972940,0.06092,91847.0,91846.0,0.00016335]
[1763537975539,0.06092,91847.0,91846.0,0.03232335]
[1763537976140,0.05473,91855.0,91846.0,0.06187335]
[1763537976342,0.05473,91855.0,91854.0,0.3608]
[1763537976343,0.4903567,91855.0,91854.0,0.3608]
[1763537978240,0.1698714,91851.0,91850.0,0.36299803]
[1763537979444,0.1698714,91851.0,91850.0,0.3608]
[1763537979946,0.1698714,91851.0,91836.0,0.37897]
[1763537979947,0.108968,91837.0,91836.0,0.3608]
[1763537981044,0.1089787,91828.0,91827.0,0.00016335]
[1763537981650,0.19717017,91828.0,91827.0,0.00016335]
[1763537982454,0.1089787,91828.0,91827.0,0.00016335]
[1763537983249,0.19426764,91828.0,91827.0,0.06187335]
[1763537983553,0.08528894,91828.0,91827.0,0.06187335]
[1763537983759,0.2656,91828.0,91827.0,0.06187335]
[1763537984243,0.1089767,91830.0,91829.0,0.06171]
[1763537984441,0.13089646,91837.0,91827.0,0.00016335]
[1763537984442,0.108974,91832.0,91830.0,0.00219803]
[1763537984644,0.108974,91832.0,91831.0,0.06171]
[1763537990052,0.108974,91832.0,91830.0,0.00219803]
[1763537990356,0.108974,91832.0,91828.0,0.3608]
[1763537990951,0.108974,91832.0,91828.0,0.37897]
[1763537991147,0.1089763,91830.0,91828.0,0.37897]
[1763537991859,0.14812104,91830.0,91828.0,0.37897]
[1763537992253,0.1089763,91830.0,91829.0,0.06171]
[1763537992445,0.3744563,91830.0,91829.0,0.06171]
[1763537993258,0.3744563,91830.0,91828.0,0.37897]
[1763537993556,0.3744563,91830.0,91828.0,0.44068]
[1763537994562,0.3744563,91830.0,91828.0,0.37897]
[1763537995149,0.3744563,91830.0,91828.0,0.44068]
[1763537995344,0.3744563,91830.0,91829.0,0.06171]
[1763537997046,0.3744563,91830.0,91828.0,0.37897]
[1763537997351,0.3744563,91830.0,91827.0,0.00016335]
[1763537997352,0.0119,91828.0,91827.0,5e-08]
[1763537999856,0.06704,91798.0,91797.0,0.3608]
[1763538000063,0.4415343,91798.0,91797.0,0.42564]
[1763538000362,0.1090262,91788.0,91787.0,0.3608]
[1763538000559,0.1760662,91788.0,91787.0,0.42564]
[1763538000762,0.1090262,91788.0,91787.0,0.42564]
[1763538001061,0.0338,91805.0,91804.0,0.06484]
[1763538001262,0.29928,91805.0,91804.0,0.06484]
[1763538001449,0.142806,91805.0,91804.0,0.06484]
[1763538001648,0.142806,91805.0,91800.0,0.00219803]
[1763538001649,0.10915975,91814.0,91811.0,0.06484]
[1763538001957,0.10915975,91814.0,91806.0,0.02028]
[1763538001958,0.11999127,91814.0,91813.0,0.06484]
[1763538002153,0.11999127,91814.0,91806.0,0.38108]
[1763538002154,0.1760389,91811.0,91810.0,0.00219803]
[1763538002548,0.1760436,91807.0,91806.0,0.38108]
[1763538002753,0.1760436,91807.0,91806.0,0.44592]
[1763538002957,0.1428036,91807.0,91806.0,0.44592]
[1763538003664,0.1090036,91807.0,91806.0,0.44592]
[1763538003854,0.1090036,91807.0,91806.0,0.38108]
[1763538003855,0.1760436,91807.0,91806.0,0.38108]
[1763538004055,0.1760436,91807.0,91788.0,0.02880238]
[1763538004056,0.1760508,91801.0,91790.0,0.00999999]